bitfinex/quotes_BTCUSD_20240817
["timestamp","ask_amount","ask_price","bid_price","bid_amount"]
[1723868586183,0.00824,59322.0,59318.0,2.48126153]
[1723868586393,0.00824,59322.0,59318.0,2.35933709]
[1723868586755,0.00824,59322.0,59318.0,2.47383762]
[1723868587016,0.00824,59322.0,59318.0,2.3693485]
[1723868587209,0.00824,59322.0,59318.0,2.26455629]
[1723868587361,0.00824,59322.0,59318.0,2.27855629]
[1723868587883,0.00824,59322.0,59318.0,2.29255629]
[1723868588313,0.00824,59322.0,59318.0,2.23315875]
[1723868588451,0.00824,59322.0,59318.0,2.21915875]
[1723868588652,0.00824,59322.0,59318.0,2.28331193]
[1723868588864,0.00824,59322.0,59318.0,2.28331142]
[1723868589069,0.00824,59322.0,59318.0,2.2832927]
[1723868589273,0.00824,59322.0,59318.0,2.11358613]
[1723868589474,0.00824,59322.0,59318.0,2.14158613]
[1723868589887,0.00824,59322.0,59318.0,2.12758613]
[1723868590094,0.00824,59322.0,59318.0,2.24708706]
[1723868590293,0.00824,59322.0,59318.0,2.14158613]
[1723868590494,0.00824,59322.0,59318.0,2.12758613]
[1723868590977,0.00824,59322.0,59318.0,2.11358613]
[1723868591186,0.00824,59322.0,59318.0,2.12758613]
[1723868591386,0.00824,59322.0,59318.0,2.14158613]
[1723868591590,0.00824,59322.0,59318.0,2.12758613]
[1723868592038,0.00824,59322.0,59318.0,2.14158613]
[1723868593109,0.00824,59322.0,59318.0,1.69693174]
[1723868593353,0.00824,59322.0,59318.0,1.79333174]
[1723868593766,0.00824,59322.0,59318.0,1.77933174]
[1723868594378,0.00824,59322.0,59318.0,1.79533174]
[1723868594712,0.00824,59322.0,59318.0,1.78133174]
[1723868594912,0.00824,59322.0,59318.0,1.85703174]
[1723868595112,0.00824,59322.0,59318.0,1.87103174]
[1723868595714,0.00824,59322.0,59318.0,1.79133174]
[1723868595934,0.00824,59322.0,59318.0,2.06306374]
[1723868596535,0.00824,59322.0,59318.0,2.13876374]
[1723868596781,0.00824,59322.0,59318.0,2.14076374]
[1723868598703,0.00824,59322.0,59318.0,2.13676374]
[1723868599119,0.00824,59322.0,59318.0,2.13876374]
[1723868599292,0.00824,59322.0,59318.0,2.13676374]
[1723868599496,0.00824,59322.0,59318.0,2.14076374]
[1723868599708,0.001025,59319.0,59318.0,2.14076374]
[1723868601273,0.001025,59319.0,59318.0,2.14078043]
[1723868601824,0.001025,59319.0,59318.0,2.13678043]
[1723868605185,0.001025,59319.0,59318.0,2.1367892]
[1723868605787,0.001025,59319.0,59318.0,2.13679274]
[1723868606207,0.001025,59319.0,59318.0,2.13879274]
[1723868606610,0.001025,59319.0,59318.0,2.13679274]
[1723868606994,0.001025,59319.0,59318.0,2.13879274]
[1723868607465,0.001025,59319.0,59318.0,2.13679274]
[1723868608263,0.001025,59319.0,59318.0,2.14079274]
[1723868608677,0.001025,59319.0,59318.0,2.13679274]
[1723868609032,0.001025,59319.0,59318.0,2.13679264]
[1723868609436,0.001025,59319.0,59318.0,2.10751759]
[1723868609630,0.001025,59319.0,59318.0,2.13680066]
[1723868609879,0.001025,59319.0,59318.0,2.10624874]
[1723868610081,0.001025,59319.0,59318.0,2.13680084]
[1723868610491,0.001025,59319.0,59318.0,1.90350084]
[1723868610693,0.001025,59319.0,59318.0,1.99790084]
[1723868610868,0.001025,59319.0,59318.0,1.99990084]
[1723868612378,0.001025,59319.0,59318.0,2.03643834]
[1723868612765,0.001025,59319.0,59318.0,2.0465144]
[1723868613472,0.001025,59319.0,59318.0,2.046511]
[1723868613673,0.001025,59319.0,59318.0,2.15201345]
[1723868613882,0.001025,59319.0,59318.0,2.14193775]
[1723868614293,0.001025,59319.0,59318.0,2.19816452]
[1723868614898,0.001025,59319.0,59318.0,2.19816504]
[1723868615094,0.001025,59319.0,59318.0,2.19616504]
[1723868615899,0.001025,59319.0,59318.0,2.19816504]
[1723868616775,0.001025,59319.0,59318.0,2.0528044]
[1723868616996,0.001025,59319.0,59318.0,2.19816725]
[1723868617342,0.001025,59319.0,59318.0,2.33946725]
[1723868618359,0.001025,59319.0,59318.0,2.33846725]
[1723868618778,0.001025,59319.0,59318.0,2.33746725]
[1723868619038,0.001025,59319.0,59318.0,2.33946725]
[1723868619585,0.001025,59319.0,59318.0,2.33946707]
[1723868621682,1e-06,59319.0,59318.0,2.60919907]
[1723868623185,1e-06,59319.0,59318.0,2.59519907]
[1723868623308,1e-06,59319.0,59318.0,2.60919907]
[1723868623682,1e-06,59319.0,59318.0,2.64532548]
[1723868623889,1e-06,59319.0,59318.0,2.65932548]
[1723868624095,1e-06,59319.0,59318.0,2.64532548]
[1723868624234,1e-06,59319.0,59318.0,2.53051425]
[1723868624432,1e-06,59319.0,59318.0,2.64532037]
[1723868624633,1e-06,59319.0,59318.0,2.59519396]
[1723868624834,1e-06,59319.0,59318.0,2.60919396]
[1723868625473,1e-06,59319.0,59318.0,2.77898575]
[1723868626037,1e-06,59319.0,59318.0,2.7789852]
[1723868626265,1e-06,59319.0,59318.0,2.70379558]
[1723868626473,0.0115817,59336.0,59333.0,0.001]
[1723868626730,0.0115817,59336.0,59335.0,0.36798154]
[1723868627027,0.0115817,59336.0,59335.0,1.3965332]
[1723868627312,0.0115817,59336.0,59335.0,1.77825647]
[1723868627486,0.0115817,59336.0,59335.0,1.7681882]
[1723868627686,0.0115817,59336.0,59335.0,2.0880495]
[1723868627941,0.0115817,59336.0,59335.0,2.0840495]
[1723868628143,0.0115817,59336.0,59335.0,2.12315266]
[1723868628409,0.0115817,59336.0,59335.0,2.11009487]
[1723868628881,0.0115817,59336.0,59335.0,2.11209487]
[1723868629470,0.0115817,59336.0,59335.0,2.22114579]
[1723868629685,0.0115817,59336.0,59335.0,2.23514579]
[1723868629890,0.0115817,59336.0,59335.0,2.23114579]
[1723868630092,0.0115817,59336.0,59335.0,1.90089079]
[1723868630364,0.0115817,59336.0,59335.0,1.82569289]
[1723868630579,0.0115817,59336.0,59335.0,1.81562542]
[1723868630788,0.0874817,59336.0,59335.0,1.81176435]
[1723868630991,0.0874817,59336.0,59335.0,1.86432215]
[1723868631192,0.0874817,59336.0,59335.0,1.77955809]
[1723868631344,0.0874817,59336.0,59335.0,1.70422937]
[1723868631546,0.1435817,59336.0,59335.0,1.75444579]
[1723868632187,0.1435817,59336.0,59335.0,1.5987287]
[1723868633578,0.1435817,59336.0,59335.0,1.64894512]
[1723868633799,0.1435817,59336.0,59335.0,1.7544039]
[1723868633991,0.0874817,59336.0,59335.0,1.7544039]
[1723868634207,0.0874817,59336.0,59335.0,1.6812054]
[1723868634364,0.0874817,59336.0,59335.0,1.20607308]
[1723868634365,0.1435817,59336.0,59335.0,1.20607308]
[1723868634535,0.1435817,59336.0,59335.0,1.16464633]
[1723868635563,0.1435817,59336.0,59335.0,1.27387569]
[1723868636257,0.1444057,59336.0,59335.0,0.46301115]
[1723868636433,0.1444057,59336.0,59335.0,0.72343679]
[1723868637689,0.1444057,59336.0,59335.0,0.82343679]
[1723868638351,0.1444057,59336.0,59335.0,0.82345648]
[1723868641451,0.1444057,59336.0,59335.0,0.82345305]
[1723868641804,0.1444057,59336.0,59335.0,0.802137]
[1723868641983,0.1444057,59336.0,59335.0,0.82345336]
[1723868642188,0.1444057,59336.0,59335.0,0.14931636]
[1723868642189,0.5084557,59336.0,59335.0,0.14931636]
[1723868642395,0.4036307,59336.0,59335.0,0.028]
[1723868642583,0.42156079,59336.0,59335.0,0.028]
[1723868642781,0.74170167,59336.0,59335.0,0.028]
[1723868643203,0.46705167,59336.0,59330.0,0.134838]
[1723868643448,0.0944,59332.0,59330.0,0.134838]
[1723868643613,0.0759,59330.0,59328.0,0.134842]
[1723868643825,0.132,59329.0,59328.0,0.134842]
[1723868644016,0.24432068,59329.0,59328.0,0.1]
[1723868644220,0.132,59325.0,59323.0,0.134854]
[1723868644565,0.0561,59323.0,59320.0,0.13486]
[1723868644773,0.0944,59324.0,59319.0,0.134862]
[1723868644774,0.0759,59321.0,59319.0,0.134862]
[1723868644908,0.132,59320.0,59319.0,0.134864]
[1723868645109,0.14989865,59320.0,59319.0,0.404592]
[1723868645572,0.14989865,59320.0,59319.0,0.1]
[1723868645737,0.296864,59319.0,59318.0,0.0009064]
[1723868645954,0.391264,59319.0,59318.0,0.0009064]
[1723868646134,0.32479367,59319.0,59318.0,0.0009064]
[1723868646365,0.14990539,59319.0,59318.0,0.5403704]
[1723868646562,0.14990539,59319.0,59318.0,0.6752364]
[1723868647180,0.14990539,59319.0,59318.0,0.6832364]
[1723868647398,0.132,59319.0,59318.0,0.6832364]
[1723868647600,0.14990135,59319.0,59318.0,0.6912364]
[1723868648338,0.14990135,59319.0,59318.0,0.4215044]
[1723868649338,0.132,59319.0,59318.0,0.4215044]
[1723868650439,0.14987942,59319.0,59318.0,0.4215044]
[1723868651789,0.132,59319.0,59318.0,0.4215044]
[1723868652979,0.14987942,59319.0,59318.0,0.4215044]
[1723868655160,0.14987942,59319.0,59318.0,0.6912364]
[1723868655367,0.132,59319.0,59318.0,0.6912364]
[1723868656176,0.132,59319.0,59318.0,0.4215044]
[1723868657168,0.14987942,59319.0,59318.0,0.4215044]
[1723868658502,0.09377942,59319.0,59318.0,0.4215044]
[1723868661275,0.09377942,59319.0,59318.0,0.6912364]
[1723868661774,0.0759,59319.0,59318.0,0.6912364]
[1723868662023,0.0759,59319.0,59318.0,0.4215044]
[1723868662233,0.09377942,59319.0,59318.0,0.4215044]
[1723868663721,0.01787942,59319.0,59318.0,1.29652294]
[1723868663938,0.01787942,59319.0,59318.0,1.41785707]
[1723868664199,0.0751,59331.0,59330.0,0.404517]
[1723868664435,0.0751,59331.0,59330.0,0.504517]
[1723868664695,0.0751,59331.0,59330.0,0.774195]
[1723868665917,0.0751,59331.0,59330.0,0.794195]
[1723868667629,0.0751,59331.0,59330.0,0.784195]
[1723868668046,0.0751,59331.0,59330.0,0.774195]
[1723868668272,0.0751,59331.0,59330.0,0.784195]
[1723868668445,0.0751,59331.0,59330.0,0.81550541]
[1723868668650,0.0751,59331.0,59330.0,0.80550541]
[1723868668995,0.0751,59331.0,59330.0,0.81550541]
[1723868669419,0.0751,59331.0,59330.0,0.80550541]
[1723868669620,0.0751,59331.0,59330.0,0.79550541]
[1723868669793,0.0751,59331.0,59330.0,0.80550541]
[1723868670778,0.0751,59331.0,59330.0,0.81550541]
[1723868671412,0.0751,59331.0,59330.0,0.81550668]
[1723868673188,0.0751,59331.0,59330.0,0.54582868]
[1723868673618,0.09694975,59331.0,59330.0,0.54582868]
[1723868674469,0.09694975,59331.0,59330.0,0.54582782]
[1723868676409,0.09694975,59331.0,59330.0,0.81550582]
[1723868676615,0.02184975,59331.0,59330.0,0.81550582]
[1723868676815,0.0758,59334.0,59333.0,0.134832]
[1723868677113,0.09765468,59334.0,59333.0,0.134832]
[1723868678014,0.02185468,59334.0,59333.0,0.134832]
[1723868678316,0.1132057,59336.0,59334.0,0.134829]
[1723868678670,0.0074057,59336.0,59335.0,0.96509426]
[1723868678948,0.0074057,59336.0,59335.0,1.14429426]
[1723868679726,0.0074057,59336.0,59335.0,1.122992]
[1723868679926,0.0074057,59336.0,59335.0,1.14429194]
[1723868680899,0.0074057,59336.0,59335.0,1.15129194]
[1723868681094,0.0074057,59336.0,59335.0,1.07209194]
[1723868681543,0.0074057,59336.0,59335.0,1.07909194]
[1723868683127,0.0024057,59336.0,59335.0,1.07909194]
[1723868684136,0.0024057,59336.0,59335.0,1.07909048]
[1723868687168,0.0024057,59336.0,59335.0,1.07908792]
[1723868688203,0.1343057,59336.0,59335.0,0.27012292]
[1723868688413,0.1343057,59336.0,59335.0,0.114]
[1723868688621,0.15401036,59336.0,59335.0,0.014]
[1723868688839,0.28883536,59336.0,59335.0,0.014]
[1723868689013,0.15401036,59336.0,59335.0,0.014]
[1723868689448,0.20448854,59336.0,59335.0,0.014]
[1723868689597,0.15401036,59336.0,59335.0,0.014]
[1723868689803,0.20448854,59336.0,59335.0,0.014]
[1723868691374,0.29888854,59336.0,59335.0,0.014]
[1723868691588,1.27792965,59336.0,59335.0,0.014]
[1723868691803,1.62936419,59336.0,59335.0,0.014]
[1723868692024,1.4796896,59336.0,59335.0,0.014]
[1723868692240,1.75410696,59336.0,59335.0,0.014]
[1723868692445,2.10748727,59336.0,59335.0,0.007]
[1723868692592,2.10748727,59336.0,59335.0,0.008]
[1723868693552,1.37220272,59336.0,59335.0,0.001]
[1723868693664,1.52363066,59336.0,59335.0,0.002]
[1723868693864,0.509909,59331.0,59330.0,0.0009064]
[1723868694062,0.88527796,59331.0,59330.0,0.0009064]
[1723868694276,0.90715395,59331.0,59330.0,0.0009064]
[1723868694693,0.90908783,59331.0,59330.0,0.0009064]
[1723868695141,0.80813942,59331.0,59330.0,0.0009064]
[1723868695462,0.80813942,59331.0,59330.0,0.0029064]
[1723868695632,0.80813942,59331.0,59330.0,0.0049064]
[1723868696414,0.77813942,59331.0,59330.0,0.0049064]
[1723868696631,0.80813942,59331.0,59330.0,0.0049064]
[1723868698455,0.90907651,59331.0,59330.0,0.0049064]
[1723868700703,0.90842135,59331.0,59330.0,0.0049064]
[1723868704196,0.90824285,59331.0,59330.0,0.0049064]
[1723868705630,0.39833385,59331.0,59330.0,0.5509234]
[1723868705837,0.39833385,59331.0,59330.0,1.38314067]
[1723868705838,0.02187576,59331.0,59330.0,1.38314067]
[1723868705973,0.02187576,59331.0,59330.0,1.40614067]
[1723868706182,0.0024057,59336.0,59335.0,0.545982]
[1723868706546,0.03052979,59336.0,59335.0,0.93694373]
[1723868707997,0.03052979,59336.0,59335.0,0.94394373]
[1723868708198,0.03052979,59336.0,59335.0,0.922637]
[1723868708404,0.03052979,59336.0,59335.0,0.94393465]
[1723868708962,0.03052979,59336.0,59335.0,0.95093465]
[1723868709365,0.03052979,59336.0,59335.0,0.248827]
[1723868709576,0.03052979,59336.0,59335.0,0.518482]
[1723868711255,0.78495479,59336.0,59335.0,0.014]
[1723868711458,0.97395456,59336.0,59335.0,0.014]
[1723868711724,1.20514587,59336.0,59335.0,0.014]
[1723868712124,1.20514587,59336.0,59335.0,0.007]
[1723868712550,1.20514587,59336.0,59330.0,0.0009064]
[1723868712551,0.164836,59331.0,59330.0,0.0009064]
[1723868712963,0.24344287,59331.0,59330.0,0.0009064]
[1723868713165,0.24344242,59331.0,59330.0,0.0009064]
[1723868714376,0.24344242,59331.0,59330.0,0.0059064]
[1723868714952,0.24344242,59331.0,59330.0,0.0109064]
[1723868715421,0.24344242,59331.0,59330.0,0.0059064]
[1723868715633,0.24344242,59331.0,59330.0,0.0099064]
[1723868715824,0.51311542,59331.0,59330.0,0.0049064]
[1723868716032,0.51311542,59331.0,59330.0,0.0069064]
[1723868716812,0.51311542,59331.0,59330.0,0.0009064]
[1723868717038,0.51311542,59331.0,59330.0,0.0029064]
[1723868717197,0.51311542,59331.0,59330.0,0.0049064]
[1723868717406,0.51311542,59331.0,59330.0,0.0029064]
[1723868717611,0.59640694,59331.0,59330.0,0.0029064]
[1723868717815,0.86607994,59331.0,59330.0,0.0049064]
[1723868718222,1.16297916,59331.0,59330.0,0.0049064]
[1723868718600,1.46033946,59331.0,59330.0,0.0049064]
[1723868718789,1.08230051,59331.0,59330.0,0.0049064]
[1723868718995,1.35896466,59331.0,59330.0,0.0049064]
[1723868719196,1.08330051,59331.0,59330.0,0.0049064]
[1723868719603,1.35893826,59331.0,59330.0,0.0049064]
[1723868719807,1.08330051,59331.0,59330.0,0.0049064]
[1723868720622,1.08412551,59331.0,59330.0,0.0049064]
[1723868721036,1.46219614,59331.0,59330.0,0.0049064]
[1723868721660,1.18952314,59331.0,59330.0,0.0049064]
[1723868722071,0.88911961,59331.0,59330.0,0.0049064]
[1723868723462,0.94846965,59331.0,59330.0,0.0049064]
[1723868724261,1.00756965,59331.0,59330.0,0.0049064]
[1723868724464,0.94821961,59331.0,59330.0,0.0049064]
[1723868725302,0.94521961,59331.0,59330.0,0.0049064]
[1723868726677,0.94522264,59331.0,59330.0,0.0049064]
[1723868727482,0.86955251,59331.0,59330.0,0.0049064]
[1723868728284,0.87055251,59331.0,59330.0,0.0049064]
[1723868728574,1.14635441,59331.0,59330.0,0.0049064]
[1723868728803,1.14835441,59331.0,59330.0,0.0049064]
[1723868729437,1.24924792,59331.0,59330.0,0.0049064]
[1723868729842,1.3869844,59331.0,59330.0,0.0049064]
[1723868730048,1.24924792,59331.0,59330.0,0.0049064]
[1723868731094,1.24945966,59331.0,59330.0,0.0049064]
[1723868731498,1.14852628,59331.0,59330.0,0.0049064]
[1723868731705,1.14552628,59331.0,59330.0,0.0049064]
[1723868731930,1.08942628,59331.0,59330.0,0.0049064]
[1723868732490,1.21559301,59331.0,59330.0,0.0049064]
[1723868733299,0.33494428,59331.0,59330.0,0.0049064]
[1723868733500,0.109458,59331.0,59330.0,0.0867064]
[1723868734082,0.109458,59331.0,59330.0,0.1526064]
[1723868734318,0.05897051,59331.0,59330.0,0.1526064]
[1723868734518,0.05897051,59331.0,59330.0,0.2874454]
[1723868737582,0.05897051,59331.0,59330.0,0.1526064]
[1723868738027,0.05897051,59331.0,59330.0,1.0964794]
[1723868738028,0.02897051,59331.0,59330.0,1.0964794]
[1723868738235,0.02897051,59331.0,59330.0,1.38932782]
[1723868738440,0.000825,59331.0,59330.0,1.38932782]
[1723868738562,0.000825,59331.0,59330.0,1.38732782]
[1723868738770,0.000825,59331.0,59330.0,1.39455006]
[1723868738974,0.000825,59331.0,59330.0,1.39655006]
[1723868739573,0.000825,59331.0,59330.0,1.39455006]
[1723868740007,0.000825,59331.0,59330.0,1.66422806]
[1723868740174,0.000825,59331.0,59330.0,1.68625654]
[1723868740376,0.000825,59331.0,59330.0,1.66422142]
[1723868740754,0.000825,59331.0,59330.0,1.6882375]
[1723868741001,0.000825,59331.0,59330.0,1.68823803]
[1723868741201,0.000825,59331.0,59330.0,1.70023803]
[1723868741401,0.000825,59331.0,59330.0,1.69101445]
[1723868741511,0.000825,59331.0,59330.0,1.68823799]
[1723868741714,0.000825,59331.0,59330.0,1.69301445]
[1723868741989,0.000825,59331.0,59330.0,1.69101445]
[1723868742188,0.000825,59331.0,59330.0,1.70501445]
[1723868742437,0.000825,59331.0,59330.0,1.39932015]
[1723868742837,0.000825,59331.0,59330.0,1.41332015]
[1723868743212,0.000825,59331.0,59330.0,1.39932015]
[1723868743416,0.000825,59331.0,59330.0,1.41332015]
[1723868744272,0.000825,59331.0,59330.0,1.39932015]
[1723868744423,0.000825,59331.0,59330.0,1.37803394]
[1723868744621,0.000825,59331.0,59330.0,1.38532068]
[1723868744851,0.000825,59331.0,59330.0,1.39932068]
[1723868745267,0.000825,59331.0,59330.0,1.41332068]
[1723868746059,0.000825,59331.0,59330.0,1.39932068]
[1723868746263,0.000825,59331.0,59330.0,1.41332068]
[1723868747082,0.000825,59331.0,59330.0,1.39203394]
[1723868747285,0.000825,59331.0,59330.0,1.41332021]
[1723868747686,0.000825,59331.0,59330.0,1.41331916]
[1723868748749,0.000825,59331.0,59330.0,1.39203394]
[1723868748950,0.000825,59331.0,59330.0,1.41332039]
[1723868750193,0.00038557,59331.0,59330.0,1.41332039]
[1723868751992,0.00103127,59337.0,59336.0,0.134825]
[1723868752149,0.00103127,59337.0,59336.0,0.25611145]
[1723868752505,0.00103127,59337.0,59336.0,0.33121145]
[1723868752709,0.00103127,59337.0,59336.0,0.33121123]
[1723868752912,0.00103127,59337.0,59336.0,1.14016123]
[1723868753146,0.00103127,59337.0,59336.0,1.118875]
[1723868753349,0.00103127,59337.0,59336.0,1.14016137]
[1723868753482,0.00103127,59337.0,59336.0,1.16816137]
[1723868753885,0.00103127,59337.0,59336.0,1.23026137]
[1723868757048,0.00103127,59337.0,59336.0,1.23025929]
[1723868760832,0.00103127,59337.0,59336.0,0.262825]
[1723868761027,0.02919928,59337.0,59336.0,0.262825]
[1723868761229,0.02919928,59337.0,59336.0,0.532475]
[1723868761657,0.02919928,59337.0,59336.0,0.939325]
[1723868761921,0.02919928,59337.0,59336.0,1.23026138]
[1723868763677,0.02919928,59337.0,59336.0,1.23026246]
[1723868767208,0.02919928,59337.0,59336.0,1.32466246]
[1723868767426,0.02919928,59337.0,59336.0,1.55045802]
[1723868767832,0.02919928,59337.0,59336.0,1.82010802]
[1723868768045,0.02919928,59337.0,59336.0,1.82101442]
[1723868768400,0.02919928,59337.0,59336.0,1.80701442]
[1723868768803,0.02919928,59337.0,59336.0,1.53736442]
[1723868769188,0.02919928,59337.0,59336.0,1.55136442]
[1723868769384,0.02919928,59337.0,59336.0,1.56173933]
[1723868769589,0.02919928,59337.0,59336.0,1.53736442]
[1723868769975,0.02919928,59337.0,59336.0,1.55136442]
[1723868771814,0.02919928,59337.0,59336.0,1.55135973]
[1723868772253,0.02919928,59337.0,59336.0,1.45695973]
[1723868772461,0.02919928,59337.0,59336.0,1.52335973]
[1723868772667,0.02919928,59337.0,59336.0,1.53735973]
[1723868772920,0.02919928,59337.0,59336.0,1.55135973]
[1723868773147,0.02919928,59337.0,59336.0,1.51435973]
[1723868773300,0.02919928,59337.0,59336.0,1.20316886]
[1723868773499,0.02919928,59337.0,59336.0,1.23918172]
[1723868773702,0.02919928,59337.0,59336.0,1.21716886]
[1723868773903,0.02919928,59337.0,59336.0,1.23116886]
[1723868774149,0.02919928,59337.0,59336.0,1.25318172]
[1723868774323,0.02919928,59337.0,59336.0,1.23116886]
[1723868774723,0.02919928,59337.0,59336.0,1.25318172]
[1723868775116,0.02919928,59337.0,59336.0,1.4339593]
[1723868775322,0.02919928,59337.0,59336.0,1.4569593]
[1723868775805,0.02919928,59337.0,59336.0,1.45695853]
[1723868776021,0.02919928,59337.0,59336.0,1.44295853]
[1723868776229,0.02919928,59337.0,59336.0,1.4124488]
[1723868776444,0.02919928,59337.0,59336.0,1.44295243]
[1723868776679,0.02919928,59337.0,59336.0,1.45695243]
[1723868776874,0.02919928,59337.0,59336.0,1.42895243]
[1723868777150,0.02919928,59337.0,59336.0,1.45695243]
[1723868777580,0.02919928,59337.0,59336.0,1.45694918]
[1723868778655,0.02919928,59337.0,59336.0,1.42894918]
[1723868778858,0.02919928,59337.0,59336.0,1.45694918]
[1723868780246,0.02919928,59337.0,59336.0,1.45694804]
[1723868781373,0.02919928,59337.0,59336.0,1.78527702]
[1723868781594,0.02919928,59337.0,59336.0,1.72659804]
[1723868782741,0.02919928,59337.0,59336.0,1.96249804]
[1723868783177,0.02919928,59337.0,59336.0,1.75152026]
[1723868783178,0.00103127,59337.0,59336.0,1.75152026]
[1723868783590,0.02918273,59337.0,59336.0,1.75152026]
[1723868783743,0.02918273,59337.0,59336.0,1.69284804]
[1723868784415,0.02918273,59337.0,59336.0,1.6623464]
[1723868784614,0.00103127,59337.0,59336.0,1.69284063]
[1723868787210,0.00103127,59337.0,59336.0,1.96249063]
[1723868789035,0.00103127,59337.0,59336.0,1.94120901]
[1723868789215,0.00103127,59337.0,59336.0,1.96248355]
[1723868789436,0.00103127,59337.0,59336.0,1.93199017]
[1723868789719,0.00103127,59337.0,59336.0,1.96248292]
[1723868793721,0.00103127,59337.0,59336.0,1.9312587]
[1723868793977,0.00103127,59337.0,59336.0,1.96247875]
[1723868796000,0.00103127,59337.0,59336.0,1.82087875]
[1723868798636,0.00103127,59337.0,59336.0,1.79886835]
[1723868798771,0.00103127,59337.0,59336.0,1.82086292]
[1723868798980,0.00103127,59337.0,59336.0,1.80686292]
[1723868799181,0.00103127,59337.0,59336.0,1.79286292]
[1723868799517,0.00103127,59337.0,59336.0,1.80686292]
[1723868800526,0.00103127,59337.0,59336.0,1.82086292]
[1723868800929,0.00103127,59337.0,59336.0,1.80686292]
[1723868801310,0.00103127,59337.0,59336.0,1.82086292]
[1723868803584,0.00103127,59337.0,59336.0,1.76838594]
[1723868803786,0.00103127,59337.0,59336.0,1.82085801]
[1723868804191,0.00103127,59337.0,59336.0,2.09150772]
[1723868804433,0.00103127,59337.0,59336.0,1.96579162]
[1723868804640,0.00103127,59337.0,59336.0,1.96779162]
[1723868804815,0.00103127,59337.0,59336.0,2.28760472]
[1723868805025,0.00103127,59337.0,59336.0,2.23744162]
[1723868805228,0.00824,59349.0,59336.0,2.23744162]
[1723868805229,0.00824,59349.0,59348.0,0.269596]
[1723868805361,0.0002,59359.0,59356.0,0.404338]
[1723868805561,0.0002,59359.0,59356.0,1.52858232]
[1723868805789,0.0002,59359.0,59356.0,1.79814132]
[1723868806395,0.45254,59373.0,59372.0,0.40423]
[1723868806607,0.08200333,59375.0,59372.0,0.40423]
[1723868806608,0.08200333,59375.0,59374.0,0.134739]
[1723868807013,0.03,59373.0,59372.0,0.134742]
[1723868807226,0.03,59373.0,59372.0,0.404229]
[1723868807227,0.1118,59373.0,59372.0,0.404229]
[1723868808698,0.0818,59373.0,59372.0,0.405229]
[1723868809310,0.0818,59373.0,59372.0,0.406229]
[1723868809517,0.1118,59373.0,59372.0,0.136742]
[1723868809718,0.302641,59373.0,59372.0,0.002]
[1723868814176,0.1679,59373.0,59372.0,0.002]
[1723868814579,0.00020333,59375.0,59372.0,0.002]
[1723868815075,0.00020333,59375.0,59374.0,0.404217]
[1723868815819,0.00020333,59375.0,59374.0,0.134739]
[1723868816592,0.00020333,59375.0,59374.0,0.139739]
[1723868817339,0.03020333,59375.0,59374.0,0.139739]
[1723868817602,0.03020333,59375.0,59374.0,0.144739]
[1723868817805,0.32048636,59375.0,59374.0,0.01]
[1723868818015,0.85943236,59375.0,59374.0,0.005]
[1723868818354,0.85943236,59375.0,59374.0,0.006]
[1723868818563,0.83648533,59375.0,59374.0,0.012]
[1723868818765,0.88785708,59375.0,59374.0,0.012]
[1723868819097,0.88685688,59375.0,59374.0,0.006]
[1723868819278,0.97089126,59375.0,59374.0,0.006]
[1723868819476,0.83648533,59375.0,59374.0,0.006]
[1723868819677,0.91204266,59375.0,59374.0,0.006]
[1723868819877,0.94029868,59375.0,59374.0,0.006]
[1723868820076,0.404223,59373.0,59372.0,0.0009064]
[1723868820277,0.53110055,59373.0,59372.0,0.0009064]
[1723868820486,0.5089748,59373.0,59372.0,0.0009064]
[1723868820908,0.7784568,59373.0,59372.0,0.0009064]
[1723868821142,0.85466608,59373.0,59372.0,0.0009064]
[1723868821512,0.88593435,59373.0,59372.0,0.0009064]
[1723868821729,0.88493435,59373.0,59372.0,0.0009064]
[1723868821959,0.88593435,59373.0,59372.0,0.0029064]
[1723868822179,0.88493435,59373.0,59372.0,0.0029064]
[1723868822382,0.984741,59373.0,59372.0,0.0029064]
[1723868822599,1.05929833,59373.0,59372.0,0.0029064]
[1723868823017,0.91111413,59373.0,59372.0,0.0029064]
[1723868823222,0.91011413,59373.0,59372.0,0.0029064]
[1723868823649,0.91011413,59373.0,59372.0,0.0019064]
[1723868823650,1.39893516,59373.0,59372.0,0.0019064]
[1723868823850,1.39893516,59373.0,59372.0,0.0009064]
[1723868825475,1.55004982,59373.0,59372.0,0.0009064]
[1723868825892,1.5704897,59373.0,59372.0,0.0009064]
[1723868826291,1.39893516,59373.0,59372.0,0.0009064]
[1723868826491,1.55004982,59373.0,59372.0,0.0009064]
[1723868826751,1.3942844,59373.0,59372.0,0.0009064]
[1723868826918,1.3951084,59373.0,59372.0,0.0009064]
[1723868829366,1.3931084,59373.0,59372.0,0.0009064]
[1723868829519,1.54634968,59373.0,59372.0,0.0009064]
[1723868830589,1.76013092,59373.0,59372.0,0.0009064]
[1723868830811,1.78517701,59373.0,59372.0,0.0009064]
[1723868831207,1.78380838,59373.0,59372.0,0.0009064]
[1723868831438,1.75876229,59373.0,59372.0,0.0009064]
[1723868831840,1.93646229,59373.0,59372.0,0.0009064]
[1723868832041,1.545901,59373.0,59372.0,0.0009064]
[1723868832245,1.75906684,59373.0,59372.0,0.0009064]
[1723868832769,1.77911009,59373.0,59372.0,0.0009064]
[1723868834440,1.78111009,59373.0,59372.0,0.0019064]
[1723868834669,1.77911009,59373.0,59372.0,0.0009064]
[1723868835062,1.78111009,59373.0,59372.0,0.0019064]
[1723868835570,1.13790605,59373.0,59372.0,0.0029064]
[1723868835745,1.42271972,59373.0,59372.0,0.0029064]
[1723868835953,1.42271972,59373.0,59358.0,0.134775]
[1723868835954,0.03,59359.0,59358.0,0.134775]
[1723868836324,0.0582592,59359.0,59358.0,0.134775]
[1723868837313,0.0582592,59359.0,59358.0,0.140775]
[1723868837517,0.0582592,59359.0,59358.0,0.145775]
[1723868837697,0.0582592,59359.0,59348.0,0.363893]
[1723868837698,0.03,59347.0,59342.0,0.0635]
[1723868838147,0.43263742,59346.0,59342.0,0.0635]
[1723868838377,0.134805,59345.0,59342.0,0.0635]
[1723868838617,0.134807,59344.0,59342.0,0.0635]
[1723868838814,0.16302482,59344.0,59342.0,0.0635]
[1723868839021,0.16302482,59344.0,59342.0,0.0725]
[1723868839853,0.16302482,59344.0,59342.0,0.0805]
[1723868840214,0.16302482,59344.0,59342.0,0.0635]
[1723868840393,0.16302482,59344.0,59342.0,0.0685]
[1723868840621,0.16302482,59344.0,59342.0,0.0715]
[1723868841005,0.16302482,59344.0,59342.0,0.0685]
[1723868841456,0.16302482,59344.0,59342.0,0.0735]